fUSD/lending_fUSD_20260213
["ID","MTS","AMOUNT","RATE_DAILY","PERIOD"]
[405307394,1770972664830,-500.0,0.00043835,120]
[405307395,1770972664839,-500.0,0.00043835,120]
[405307396,1770972664849,-500.0,0.00043835,120]
[405307397,1770972664858,-500.0,0.00043835,120]
[405307398,1770972664867,-500.0,0.00043835,120]
[405307399,1770972664877,-500.0,0.00043835,120]
[405307400,1770972664887,-500.0,0.00043835,120]
[405307401,1770972664896,-500.0,0.00043835,120]
[405307402,1770972664906,-500.0,0.00043835,120]
[405307403,1770972664915,-500.0,0.00043835,120]
[405307404,1770972664925,-500.0,0.00043835,120]
[405307405,1770972664935,-500.0,0.00043835,120]
[405307406,1770972664944,-151.0,0.00043835,120]
[405307407,1770972664953,-500.0,0.00043835,120]
[405307408,1770972664963,-269.89061387,0.00043835,120]
[405307409,1770972664972,-500.0,0.00043835,120]
[405307410,1770972664982,-500.0,0.00043835,120]
[405307411,1770972664991,-378.27388933,0.00043835,120]
[405307412,1770972665000,-151.0,0.00043835,120]
[405307413,1770972665011,-151.0,0.00043835,120]
[405307414,1770972665027,-151.0,0.00043835,120]
[405307415,1770972665037,-151.0,0.00043835,120]
[405307416,1770972665047,-233.86362247,0.00043835,120]
[405307417,1770972665056,-500.0,0.00043835,120]
[405307418,1770972665067,-500.0,0.00043835,120]
[405307419,1770972665077,-500.0,0.00043835,120]
[405307420,1770972665087,-533.18280319,0.00043835,120]
[405307421,1770972665137,-364.466906,0.00043835,120]
[405307422,1770972665147,-184.5376959,0.00043835,120]
[405307423,1770972665166,-500.0,0.00043835,120]
[405307424,1770972665178,-364.466906,0.00043835,120]
[405307425,1770972665189,-500.0,0.00043835,120]
[405307426,1770972665198,-500.0,0.00043835,120]
[405307427,1770972665209,-500.0,0.00043835,120]
[405307428,1770972665219,-432.808993,0.00043835,120]
[405307429,1770972665231,-330.77908838,0.00043835,120]
[405307430,1770972665240,-514.3,0.00043835,120]
[405307431,1770972665250,-514.3,0.00043835,120]
[405307432,1770972665261,-364.466906,0.00043835,120]
[405307433,1770972665271,-514.3,0.00043835,120]
[405307434,1770972665281,-514.3,0.00043835,120]
[405307435,1770972665293,-151.0,0.00043835,120]
[405307436,1770972665305,-514.3,0.00043835,120]
[405307437,1770972665315,-432.808993,0.00043835,120]
[405307438,1770972665327,-514.3,0.00043835,120]
[405307439,1770972665339,-514.3,0.00043835,120]
[405307440,1770972665348,-514.3,0.00043835,120]
[405307441,1770972665359,-500.0,0.00043835,120]
[405307442,1770972665370,-364.466906,0.00043835,120]
[405307443,1770972665380,-514.3,0.00043835,120]
[405307444,1770972665390,-500.0,0.00043835,120]
[405307445,1770972665401,-178.36783409,0.00043835,120]
[405307446,1770972665411,-514.3,0.00043835,120]
[405307447,1770972665422,-500.0,0.00043835,120]
[405307448,1770972665433,-514.3,0.00043835,120]
[405307449,1770972665444,-432.808993,0.00043835,120]
[405307450,1770972665454,-500.0,0.00043835,120]
[405307451,1770972665464,-514.3,0.00043835,120]
[405307452,1770972665476,-162.02945682,0.00043835,120]
[405307453,1770972665486,-514.3,0.00043835,120]
[405307454,1770972665500,-514.3,0.00043835,120]
[405307455,1770972665516,-514.3,0.00043835,120]
[405307456,1770972665526,-514.3,0.00043835,120]
[405307457,1770972665537,-514.3,0.00043835,120]
[405307458,1770972665552,-514.3,0.00043835,120]
[405307459,1770972665565,-432.808993,0.00043835,120]
[405307460,1770972665574,-514.3,0.00043835,120]
[405307461,1770972665590,-514.3,0.00043835,120]
[405307462,1770972665607,-514.3,0.00043835,120]
[405307463,1770972665618,-514.3,0.00043835,120]
[405307464,1770972665631,-290.71993947,0.00043835,120]
[405307465,1770972665648,-514.3,0.00043835,120]
[405307466,1770972665658,-151.0,0.00043835,120]
[405307467,1770972665669,-514.50650733,0.00043835,120]
[405307468,1770972665680,-500.0,0.00043835,120]
[405307469,1770972665698,-500.0,0.00043835,120]
[405307470,1770972665713,-500.0,0.00043835,120]
[405307471,1770972665723,-500.0,0.00043835,120]
[405307472,1770972665739,-500.0,0.00043835,120]
[405307473,1770972665755,-500.0,0.00043835,120]
[405307474,1770972665767,-469.8677089,0.00043835,120]
[405307475,1770972665781,-500.0,0.00043835,120]
[405307476,1770972665793,-151.0,0.00043835,120]
[405307477,1770972665806,-595.38276844,0.00043835,120]
[405307478,1770972665818,-162.873119,0.00043835,120]
[405307479,1770972665829,-586.13648403,0.00043835,120]
[405307480,1770972665844,-500.0,0.00043835,120]
[405307481,1770972665856,-500.0,0.00043835,120]
[405307482,1770972665867,-500.0,0.00043835,120]
[405307483,1770972665881,-500.0,0.00043835,120]
[405307484,1770972665892,-500.0,0.00043835,120]
[405307485,1770972665905,-155.036509,0.00043835,120]
[405307486,1770972665917,-500.0,0.00043835,120]
[405307487,1770972665929,-500.0,0.00043835,120]
[405307488,1770972665942,-500.0,0.00043835,120]
[405307489,1770972665952,-364.27210897,0.00043835,120]
[405307490,1770972665961,-500.0,0.00043835,120]
[405307491,1770972665972,-500.0,0.00043835,120]
[405307492,1770972665982,-500.0,0.00043835,120]
[405307493,1770972665992,-303.64731927,0.00043835,120]
[405307494,1770972666003,-500.0,0.00043835,120]
[405307495,1770972666014,-500.0,0.00043835,120]
[405307496,1770972666024,-199.33966073,0.00043835,120]
[405307497,1770972666034,-500.0,0.00043835,120]
[405307498,1770972666043,-500.0,0.00043835,120]
[405307499,1770972666054,-500.0,0.00043835,120]
[405307500,1770972666064,-500.0,0.00043835,120]
[405307501,1770972666075,-500.0,0.00043835,120]
[405307502,1770972666087,-500.0,0.00043835,120]
[405307503,1770972666097,-500.0,0.00043835,120]
[405307504,1770972666108,-305.62165018,0.00043835,120]
[405307505,1770972666117,-281.32195917,0.00043835,120]
[405307506,1770972666127,-8365.83,0.00043835,120]
[405307507,1770972666136,-8365.83,0.00043835,120]
[405307508,1770972666147,-363.33284,0.00043835,120]
[405307509,1770972666157,-350.98182568,0.00043835,120]
[405307510,1770972666167,-8365.83,0.00043835,120]
[405307511,1770972666178,-8365.83,0.00043835,120]
[405307512,1770972666189,-336.34964521,0.00043835,120]
[405307513,1770972666199,-8365.83,0.00043835,120]
[405307514,1770972666210,-8365.83,0.00043835,120]
[405307515,1770972666222,-8365.83,0.00043835,120]
[405307516,1770972666232,-8365.83,0.00043835,120]
[405307517,1770972666244,-8365.83,0.00043835,120]
[405307518,1770972666256,-8365.83,0.00043835,120]
[405307519,1770972666266,-8365.83,0.00043835,120]
[405307520,1770972666276,-8365.83,0.00043835,120]
[405307521,1770972666287,-8365.83,0.00043835,120]
[405307522,1770972666299,-8365.83,0.00043835,120]
[405307523,1770972666310,-8365.83,0.00043835,120]
[405307524,1770972666321,-8365.83,0.00043835,120]
[405307525,1770972666331,-8365.83,0.00043835,120]
[405307526,1770972666341,-8365.83,0.00043835,120]
[405307527,1770972666352,-8365.83,0.00043835,120]
[405307528,1770972666361,-8365.83,0.00043835,120]
[405307529,1770972666371,-8365.83,0.00043835,120]
[405307530,1770972666381,-8365.83,0.00043835,120]
[405307531,1770972666390,-8365.83,0.00043835,120]
[405307532,1770972666402,-8366.05466206,0.00043835,120]
[405307533,1770972666412,-625.2351,0.00043835,120]
[405307534,1770972666422,-151.0,0.00043835,120]
[405307535,1770972666431,-151.0,0.00043835,120]
[405307536,1770972666442,-151.0,0.00043835,120]
[405307537,1770972666454,-151.0,0.00043835,120]
[405307538,1770972666464,-500.0,0.00043835,120]
[405307539,1770972666473,-500.0,0.00043835,120]
[405307540,1770972666484,-500.0,0.00043835,120]
[405307541,1770972666494,-500.0,0.00043835,120]
[405307542,1770972666504,-500.0,0.00043835,120]
[405307543,1770972666514,-500.0,0.00043835,30]
[405307544,1770972666524,-500.0,0.00043835,120]
[405307545,1770972666535,-500.0,0.00043835,30]
[405307546,1770972666545,-500.0,0.00043835,120]
[405307547,1770972666556,-500.0,0.00043835,30]
[405307548,1770972666566,-500.0,0.00043835,120]
[405307549,1770972666576,-500.0,0.00043835,30]
[405307550,1770972666586,-500.0,0.00043835,120]
[405307551,1770972666596,-168.30118,0.00043835,120]
[405307552,1770972666608,-500.0,0.00043835,30]
[405307553,1770972666619,-500.0,0.00043835,120]
[405307554,1770972666630,-500.0,0.00043835,30]
[405307555,1770972666641,-500.0,0.00043835,120]
[405307556,1770972666653,-500.0,0.00043835,30]
[405307557,1770972666664,-500.0,0.00043835,120]
[405307558,1770972666675,-500.0,0.00043835,30]
[405307559,1770972666685,-500.0,0.00043835,120]
[405307560,1770972666695,-500.0,0.00043835,30]
[405307561,1770972666708,-500.0,0.00043835,120]
[405307562,1770972666717,-500.0,0.00043835,30]
[405307563,1770972666728,-500.0,0.00043835,120]
[405307564,1770972666738,-151.0,0.00043835,120]
[405307565,1770972666752,-500.0,0.00043835,120]
[405307566,1770972666764,-500.0,0.00043835,30]
[405307567,1770972666777,-189.91211,0.00043835,120]
[405307568,1770972666789,-500.0,0.00043835,120]
[405307569,1770972666798,-500.0,0.00043835,30]
[405307570,1770972666809,-500.0,0.00043835,120]
[405307571,1770972666820,-500.0,0.00043835,30]
[405307572,1770972666830,-500.0,0.00043835,120]
[405307573,1770972666840,-500.0,0.00043835,120]
[405307574,1770972666851,-500.0,0.00043835,30]
[405307575,1770972666862,-489.17188233,0.00043835,120]
[405307576,1770972666872,-500.0,0.00043835,30]
[405307577,1770972666882,-500.0,0.00043835,30]
[405307578,1770972666891,-500.0,0.00043835,30]
[405307579,1770972666901,-189.91211,0.00043835,120]
[405307580,1770972666911,-255.48401669,0.00043835,30]
[405307581,1770972666921,-500.0,0.00043835,120]
[405307582,1770972666931,-500.0,0.00043835,120]
[405307583,1770972666942,-189.91211,0.00043835,120]
[405307584,1770972666953,-500.0,0.00043835,120]
[405307585,1770972666963,-500.0,0.00043835,120]
[405307586,1770972666973,-500.0,0.00043835,120]
[405307587,1770972666983,-500.0,0.00043835,120]
[405307588,1770972666993,-500.0,0.00043835,120]
[405307589,1770972667003,-500.0,0.00043835,120]
[405307590,1770972667014,-500.0,0.00043835,120]
[405307591,1770972667024,-500.0,0.00043835,120]
[405307592,1770972667034,-151.0,0.00043835,120]
[405307593,1770972667045,-189.91211,0.00043835,120]
[405307594,1770972667056,-500.0,0.00043835,120]
[405307595,1770972667068,-500.0,0.00043835,120]
[405307596,1770972667079,-500.0,0.00043835,120]
[405307597,1770972667091,-500.0,0.00043835,120]
[405307598,1770972667102,-500.0,0.00043835,120]
[405307599,1770972667113,-405.15781292,0.00043835,120]
[405307600,1770972667123,-151.0,0.00043835,120]
[405307601,1770972667134,-251.24520565,0.00043835,120]
[405307602,1770972667144,-500.0,0.00043835,120]
[405307603,1770972667154,-500.0,0.00043835,120]
[405307604,1770972667164,-500.0,0.00043835,120]
[405307605,1770972667175,-500.0,0.00043835,120]
[405307606,1770972667184,-376.06269625,0.00043835,120]
[405307607,1770972667194,-151.0,0.00043835,120]
[405307608,1770972667204,-161.324312,0.00043835,120]
[405307609,1770972667214,-500.0,0.00043835,120]
[405307610,1770972667224,-500.0,0.00043835,120]
[405307611,1770972667234,-500.0,0.00043835,120]
[405307612,1770972667244,-161.324312,0.00043835,120]
[405307613,1770972667254,-2409.25,0.00043835,90]
[405307614,1770972667264,-2409.25,0.00043835,90]
[405307615,1770972667274,-151.0,0.00043835,120]
[405307616,1770972667284,-161.324312,0.00043835,120]
[405307617,1770972667294,-500.0,0.00043835,120]
[405307618,1770972667304,-2409.25,0.00043835,90]
[405307619,1770972667315,-500.0,0.00043835,120]
[405307620,1770972667325,-151.0,0.00043835,120]
[405307621,1770972667336,-2409.25,0.00043835,90]
[405307622,1770972667346,-500.0,0.00043835,120]
[405307623,1770972667356,-2409.25,0.00043835,90]
[405307624,1770972667367,-500.0,0.00043835,120]
[405307625,1770972667377,-2409.25,0.00043835,90]
[405307626,1770972667387,-500.0,0.00043835,120]
[405307627,1770972667398,-418.6052633,0.00043835,120]
[405307628,1770972667408,-2409.25,0.00043835,90]
[405307629,1770972667418,-151.0,0.00043835,120]
[405307630,1770972667427,-311.84564883,0.00043835,120]
[405307631,1770972667437,-2409.25,0.00043835,90]
[405307632,1770972667448,-161.324312,0.00043835,120]
[405307633,1770972667458,-2409.25,0.00043835,90]
[405307634,1770972667467,-714.400562,0.00043835,120]
[405307635,1770972667477,-2409.25,0.00043835,90]
[405307636,1770972667487,-2409.25,0.00043835,90]
[405307637,1770972667497,-2409.25,0.00043835,90]
[405307638,1770972667508,-2409.25,0.00043835,90]
[405307639,1770972667518,-2409.25,0.00043835,90]
[405307640,1770972667528,-151.0,0.00043835,120]
[405307641,1770972667537,-2409.25,0.00043835,90]
[405307642,1770972667547,-714.400562,0.00043835,120]
[405307643,1770972667557,-2409.25,0.00043835,90]
[405307644,1770972667567,-2409.25,0.00043835,90]
[405307645,1770972667576,-2409.25,0.00043835,90]
[405307646,1770972667586,-2409.25,0.00043835,90]
[405307647,1770972667596,-2409.25,0.00043835,90]
[405307648,1770972667606,-261.670843,0.00043835,120]
[405307649,1770972667616,-2409.25,0.00043835,90]
[405307650,1770972667627,-2409.25,0.00043835,90]
[405307651,1770972667637,-714.400562,0.00043835,120]
[405307652,1770972667647,-2409.25,0.00043835,90]
[405307653,1770972667656,-198.186149,0.00043835,120]
[405307654,1770972667666,-1536.992956,0.00043835,120]
[405307655,1770972667677,-2409.28227058,0.00043835,90]
[405307656,1770972667687,-151.0,0.00043835,120]
[405307657,1770972667697,-246.38893878,0.00043835,120]
[405307658,1770972667711,-714.400562,0.00043835,120]
[405307659,1770972667721,-198.186149,0.00043835,120]
[405307660,1770972667730,-1536.992956,0.00043835,120]
[405307661,1770972667741,-198.186149,0.00043835,120]
[405307662,1770972667751,-839.0,0.00043836,120]
[405307663,1770972667760,-557.50044133,0.00043836,2]
[405307664,1770972667771,-192.84512961,0.0004384,120]
[405307665,1770972667782,-192.84,0.0004384,120]
[405307666,1770972667792,-179.98878764,0.0004384,120]
[405307667,1770972667802,-179.98878764,0.0004384,120]
[405307668,1770972667813,-179.98878764,0.0004384,120]
[405307669,1770972667822,-179.98878764,0.0004384,120]
[405307670,1770972667832,-179.98,0.0004384,120]
[405307671,1770972667843,-350.0,0.00043843,9]
[405307672,1770972667854,-150.0,0.00043872,120]
[405307673,1770972667866,-500.0,0.0004388,120]
[405307674,1770972667876,-700.0,0.000439,120]
[405307675,1770972667886,-265.464617,0.000439,44]
[405307676,1770972667897,-4641.19638585,0.000439,28]
[405307677,1770972667908,-485.0,0.00043913,30]
[405307678,1770972667918,-152.14,0.00043916,120]
[405307679,1770972667929,-659.06,0.00043945,120]
[405307680,1770972667938,-19224.8324837,0.00043965,2]
[405307681,1770972667948,-302.4,0.00043985,120]
[405307682,1770972667958,-2020.71396236,0.00043987,120]
[405307683,1770972667969,-60523.93519918,0.00043987,120]
[405307684,1770972667979,-1044.13504921,0.00043999,60]
[405307685,1770972667991,-234.56,0.00044,120]
[405307686,1770972668001,-8556.86353745,0.00044,120]
[405307687,1770972668012,-21503.73968575,0.00044,120]
[405307688,1770972668022,-150.0,0.00044,2]
[405307689,1770972668033,-1727.05278757,0.00044,120]
[405307690,1770972668043,-25101.91134973,0.00044,2]
[405307691,1770972668054,-10644.83541137,0.00044,10]
[405307692,1770972668064,-200.0,0.00044,120]
[405307693,1770972668074,-1433.141,0.00044,90]
[405307694,1770972668084,-1433.141,0.00044,90]
[405307695,1770972668094,-1433.14,0.00044,90]
[405307696,1770972668105,-23073.64968638,0.00044,120]
[405307697,1770972668115,-200.56901205,0.00044,90]
[405307698,1770972668125,-221.70775164,0.00044,90]
[405307699,1770972668135,-199.23158263,0.00044,90]
[405307700,1770972668145,-185.4482976,0.00044,30]
[405307701,1770972668155,-70933.18084726,0.00044,120]
[405307702,1770972668167,-4834.3,0.00044,15]
[405307703,1770972668177,-5000.0,0.00044,120]
[405307704,1770972668187,-3514.0,0.00044,120]
[405307705,1770972668197,-13745.69964223,0.00044,4]
[405307706,1770972668207,-39952.847907,0.00044,3]
[405307707,1770972668217,-500.0,0.00044,120]
[405307708,1770972668227,-300.0,0.00044,120]
[405307709,1770972668238,-512.0,0.00044,10]
[405307710,1770972668247,-2000.0,0.00044013,3]
[405307711,1770972668258,-2000.0,0.00044013,3]
[405307712,1770972668269,-152.14,0.00044016,120]
[405307713,1770972668279,-659.06,0.00044082,120]
[405307714,1770972668293,-5419.22579159,0.000441,120]
[405307715,1770972668303,-1999.0,0.00044109,120]
[405307716,1770972668313,-2784.41,0.00044109,120]
[405307717,1770972668324,-2784.41,0.00044109,120]
[405307718,1770972668336,-2784.41,0.00044109,120]
[405307719,1770972668347,-2784.41,0.00044109,120]
[405307720,1770972668357,-2784.41,0.00044109,120]
[405307721,1770972668368,-2784.41,0.00044109,120]
[405307722,1770972668378,-2784.41,0.00044109,120]
[405307723,1770972668390,-2784.41,0.00044109,120]
[405307724,1770972668400,-2784.41,0.00044109,120]
[405307725,1770972668412,-2784.41,0.00044109,120]
[405307726,1770972668422,-2784.41,0.00044109,120]
[405307727,1770972668433,-2784.41,0.00044109,120]
[405307728,1770972668444,-2784.41,0.00044109,120]
[405307729,1770972668455,-2784.41,0.00044109,120]
[405307730,1770972668465,-2784.41,0.00044109,120]
[405307731,1770972668476,-2784.41,0.00044109,120]
[405307732,1770972668487,-2784.41,0.00044109,120]
[405307733,1770972668498,-2784.41,0.00044109,120]
[405307734,1770972668508,-2784.41,0.00044109,120]
[405307735,1770972668519,-2784.41,0.00044109,120]
[405307736,1770972668529,-500.0,0.00044109,120]
[405307737,1770972668540,-2784.41,0.00044109,120]
[405307738,1770972668551,-500.0,0.00044109,120]
[405307739,1770972668561,-2784.41,0.00044109,120]
[405307740,1770972668571,-500.0,0.00044109,120]
[405307741,1770972668582,-2784.41,0.00044109,120]
[405307742,1770972668592,-500.0,0.00044109,120]
[405307743,1770972668603,-2784.58405575,0.00044109,120]
[405307744,1770972668614,-500.0,0.00044109,120]
[405307745,1770972668624,-500.0,0.00044109,120]
[405307746,1770972668636,-525.67480835,0.00044109,120]
[405307747,1770972668646,-250.0,0.0004411,120]
[405307748,1770972668655,-250.0,0.0004411,120]
[405307749,1770972668666,-250.0,0.0004411,120]
[405307750,1770972668675,-200.0,0.0004411,120]
[405307751,1770972668685,-220.37596059,0.0004411,120]
[405307752,1770972668696,-152.14,0.00044116,120]
[405307753,1770972668709,-153.87003674,0.00044165,7]
[405307754,1770972668719,-331.45249326,0.0004417,3]
[405307755,1770972668729,-250.0,0.00044192,120]
[405307756,1770972668740,-250.0,0.00044192,120]
[405307757,1770972668751,-250.0,0.00044192,120]
[405307758,1770972668761,-250.0,0.00044192,120]
[405307759,1770972668771,-16207.11693928,0.00044199,2]
[405307760,1770972668783,-2084.68526998,0.00044199,2]
[405307761,1770972668793,-80000.0,0.000442,30]
[405307762,1770972668803,-151.0,0.000442,120]
[405307763,1770972668814,-152.14,0.00044216,120]
[405307764,1770972668825,-659.06,0.00044219,120]
[405307765,1770972668835,-500.0,0.0004422,120]
[405307766,1770972668846,-500.0,0.00044234,60]
[405307767,1770972668856,-155499.75415226,0.00044261,2]
[405307768,1770972668867,-151.0,0.00044261,30]
[405307769,1770972668879,-151.0,0.00044261,32]
[405307770,1770972668889,-151.0,0.00044261,54]
[405307771,1770972668901,-201.19,0.00044262,30]
[405307772,1770972668912,-249.97,0.00044262,30]
[405307773,1770972668923,-158.822012,0.00044262,120]
[405307774,1770972668933,-154.058843,0.00044262,120]
[405307775,1770972668944,-151.0,0.00044262,120]
[405307776,1770972668954,-151.0,0.00044262,120]
[405307777,1770972668964,-151.0,0.00044262,120]
[405307778,1770972668974,-151.0,0.00044262,120]
[405307779,1770972668985,-151.0,0.00044262,120]
[405307780,1770972668995,-204.66933,0.00044262,120]
[405307781,1770972669005,-151.0,0.00044262,120]
[405307782,1770972669016,-151.0,0.00044262,120]
[405307783,1770972669027,-251.086235,0.00044262,120]
[405307784,1770972669037,-160.530758,0.00044262,120]
[405307785,1770972669048,-158.441673,0.00044262,120]
[405307786,1770972669058,-158.441673,0.00044262,120]
[405307787,1770972669069,-158.441673,0.00044262,120]
[405307788,1770972669080,-158.441673,0.00044262,120]
[405307789,1770972669092,-158.441673,0.00044262,120]
[405307790,1770972669271,-158.441673,0.00044262,120]
[405307791,1770972669283,-158.441673,0.00044262,120]
[405307792,1770972669293,-158.441673,0.00044262,120]
[405307793,1770972669305,-158.441673,0.00044262,120]
[405307794,1770972669315,-158.441673,0.00044262,120]
[405307795,1770972669326,-158.441673,0.00044262,120]
[405307796,1770972669339,-158.441673,0.00044262,120]
[405307797,1770972669350,-158.441673,0.00044262,120]
[405307798,1770972669360,-158.441673,0.00044262,120]
[405307799,1770972669369,-158.441673,0.00044262,120]
[405307800,1770972669379,-158.441677,0.00044262,120]
[405307801,1770972669391,-176.145963,0.00044262,120]
[405307802,1770972669400,-151.0,0.00044262,120]
[405307803,1770972669410,-243.003869,0.00044262,120]
[405307804,1770972669420,-800.0,0.00044262,16]
[405307805,1770972669430,-800.0,0.00044262,16]
[405307806,1770972669441,-800.0,0.00044262,16]
[405307807,1770972669451,-800.0,0.00044262,16]
[405307808,1770972669461,-800.0,0.00044262,16]
[405307809,1770972669471,-800.0,0.00044262,16]
[405307810,1770972669480,-800.0,0.00044262,16]
[405307811,1770972669490,-800.0,0.00044262,16]
[405307812,1770972669500,-800.0,0.00044262,32]
[405307813,1770972669510,-151.0,0.00044266,54]
[405307814,1770972669519,-151.0,0.00044266,120]
[405307815,1770972669530,-169.98429568,0.00044274,30]
[405307816,1770972669539,-150.0,0.00044274,30]
[405307817,1770972669549,-150.0,0.00044274,30]
[405307818,1770972669559,-150.0,0.00044274,30]
[405307819,1770972669568,-150.0,0.00044281,120]
[405307820,1770972669577,-151.0,0.00044296,120]
[405307821,1770972669589,-189.285564,0.00044296,120]
[405307822,1770972669600,-151.0,0.00044296,120]
[405307823,1770972669610,-163.720603,0.00044296,120]
[405307824,1770972669619,-151.0,0.00044296,120]
[405307825,1770972669628,-151.0,0.00044296,120]
[405307826,1770972669637,-151.0,0.00044296,120]
[405307827,1770972669646,-151.0,0.00044296,120]
[405307828,1770972669656,-151.0,0.00044296,120]
[405307829,1770972669665,-155.649527,0.00044296,120]
[405307830,1770972669675,-151.0,0.00044296,120]
[405307831,1770972669685,-301.000519,0.00044296,120]
[405307832,1770972669694,-151.0,0.00044296,120]
[405307833,1770972669706,-158.384846,0.00044296,120]
[405307834,1770972669716,-151.0,0.00044296,120]
[405307835,1770972669726,-151.0,0.00044296,120]
[405307836,1770972669736,-151.0,0.00044296,120]
[405307837,1770972669746,-151.0,0.00044296,120]
[405307838,1770972669756,-151.0,0.00044296,120]
[405307839,1770972669766,-154.601512,0.00044296,120]
[405307840,1770972669777,-151.0,0.00044296,120]
[405307841,1770972669787,-152.331167,0.00044296,120]
[405307842,1770972669797,-151.0,0.00044296,120]
[405307843,1770972669807,-151.0,0.00044296,120]
[405307844,1770972669817,-158.891346,0.00044296,120]
[405307845,1770972669827,-151.0,0.00044296,120]
[405307846,1770972669838,-151.0,0.00044296,120]
[405307847,1770972669847,-151.0,0.00044296,120]
[405307848,1770972669857,-151.0,0.00044296,120]
[405307849,1770972669867,-151.0,0.00044296,120]
[405307850,1770972669876,-257.568687,0.00044296,120]
[405307851,1770972669885,-166.178113,0.00044296,120]
[405307852,1770972669895,-158.507903,0.00044296,120]
[405307853,1770972669905,-252.059869,0.00044296,120]
[405307854,1770972669915,-158.735065,0.00044296,120]
[405307855,1770972669924,-245.468131,0.00044296,120]
[405307856,1770972669934,-777.891807,0.00044296,120]
[405307857,1770972669944,-777.891807,0.00044296,120]
[405307858,1770972669954,-777.891807,0.00044296,120]
[405307859,1770972669963,-777.891807,0.00044296,120]
[405307860,1770972669973,-777.891807,0.00044296,120]
[405307861,1770972669982,-777.891807,0.00044296,120]
[405307862,1770972669992,-777.891807,0.00044296,120]
[405307863,1770972670001,-777.891807,0.00044296,120]
[405307864,1770972670010,-777.891808,0.00044296,120]
[405307865,1770972670019,-248.464248,0.00044296,120]
[405307866,1770972670029,-50000.0,0.00044298,55]
[405307867,1770972670038,-28629.11851761,0.00044298,54]
[405307868,1770972670047,-2362895.58627381,0.00044299,10]
[405307869,1770972670311,-151.0,0.00043835,120]
[405307870,1770972670321,-1536.992956,0.00043835,120]
[405307871,1770972670330,-62516.3916734,0.00044299,10]
[405307872,1770972670347,-634.59901641,0.00044299,10]
[405307873,1770972670359,-4604.48971033,0.00044299,10]
[405307874,1770972670496,-665.3066818,0.00017468,2]
[405307875,1770972671470,-91.58619264,0.00017468,2]
[405307876,1770972671496,-702.49336405,0.00017468,2]
[405307877,1770972671507,-990.61376151,0.00017468,2]
[405307878,1770972671517,-198.186149,0.00043835,120]
[405307879,1770972671526,-1536.992956,0.00043835,120]
[405307880,1770972671536,-295.44288,0.00043836,120]
[405307881,1770972671546,-8266435.36331419,0.00044299,10]
[405307882,1770972671679,-1338.69920235,6.689e-05,2]
[405307883,1770972671689,-222.79011993,6.689e-05,2]
[405307884,1770972671701,-2432.02880469,6.689e-05,2]
[405307885,1770972671711,-482.4484795,0.0002657,2]
[405307886,1770972671720,-350.051313,0.00043835,120]
[405307887,1770972671730,-19.13840015,0.00043835,120]
[405307888,1770972671908,-712.84,0.00020468,2]
[405307893,1770972787669,-300.0,6.689e-05,2]
[405307894,1770972793216,1044.13504921,6.689e-05,2]
[405307895,1770972841586,300.0,6.689e-05,2]
[405307896,1770972842339,150.0,6.689e-05,2]
[405307898,1770972901845,977.0,6.689e-05,2]